[Event "The Kvibergspelen 2024"]
[Site "Kviberg Park Hotel & Conference, Krutvagen 2, Gothenburg, Sweden"]
[Date "2024.09.06"]
[Round "2.17"]
[White "Olsson, Stefan"]
[Black "Sjoholm, Emil"]
[Result "1/2-1/2"]
[TimeControl "15 minutes + 5 seconds per move from move one (Round 1 - 4) / 90 minutes + 30 seconds per move from move one (Round 5 - 8)"]
[WhiteFideId "1737325"]
[BlackFideId "1720449"]
[WhiteElo "1896"]
[BlackElo "2092"]

1. e4 {[%clk 00:15:07]} {[%emt 00:00:02]} e5 {[%clk 00:15:08]} {[%emt
00:00:02]} 2. Nf3 {[%clk 00:15:10]} {[%emt 00:00:03]} Nc6 {[%clk 00:15:11]}
{[%emt 00:00:02]} 3. Bb5 {[%clk 00:15:13]} {[%emt 00:00:03]} Nf6 {[%clk
00:15:14]} {[%emt 00:00:01]} 4. d3 {[%clk 00:15:14]} {[%emt 00:00:03]} Bc5
{[%clk 00:15:17]} {[%emt 00:00:02]} 5. O-O {[%clk 00:15:12]} {[%emt 00:00:07]}
Nd4 {[%clk 00:15:20]} {[%emt 00:00:03]} 6. Nxd4 {[%clk 00:14:45]} {[%emt
00:00:31]} Bxd4 {[%clk 00:15:23]} {[%emt 00:00:03]} 7. c3 {[%clk 00:14:35]} Bb6
{[%clk 00:15:26]} {[%emt 00:00:17]} 8. Nd2 {[%clk 00:13:30]} c6 {[%clk
00:15:29]} {[%emt 00:01:12]} 9. Ba4 {[%clk 00:13:28]} O-O {[%clk 00:15:27]}
{[%emt 00:00:12]} 10. Nf3 {[%clk 00:13:22]} d6 {[%clk 00:15:18]} {[%emt
00:00:27]} 11. h3 {[%clk 00:13:21]} h6 {[%clk 00:15:11]} {[%emt 00:00:18]} 12.
Qe2 {[%clk 00:12:27]} Qe7 {[%clk 00:14:27]} {[%emt 00:01:47]} 13. Be3 {[%clk
00:11:38]} Nh5 {[%clk 00:13:24]} {[%emt 00:02:02]} 14. d4 {[%clk 00:10:36]} Nf4
{[%clk 00:13:07]} {[%emt 00:01:29]} 15. Bxf4 {[%clk 00:10:37]} exf4 {[%clk
00:13:11]} {[%emt 00:00:06]} 16. e5 {[%clk 00:10:20]} Bf5 {[%clk 00:12:44]}
{[%emt 00:00:53]} 17. Bc2 {[%clk 00:09:58]} Bxc2 {[%clk 00:12:45]} {[%emt
00:00:32]} 18. Qxc2 {[%clk 00:10:02]} Bc7 {[%clk 00:12:07]} {[%emt 00:00:43]}
19. Rfe1 {[%clk 00:08:35]} dxe5 {[%clk 00:11:37]} {[%emt 00:02:08]} 20. Nxe5
{[%clk 00:07:55]} Rfe8 {[%clk 00:11:17]} {[%emt 00:01:09]} 21. Qf5 {[%clk
00:07:28]} Qe6 {[%clk 00:11:00]} {[%emt 00:00:54]} 22. Qxe6 {[%clk 00:06:56]}
Rxe6 {[%clk 00:10:42]} {[%emt 00:01:02]} 23. Nf3 {[%clk 00:06:56]} Rae8 {[%clk
00:10:34]} {[%emt 00:00:16]} 24. Rxe6 {[%clk 00:06:59]} Rxe6 {[%clk 00:10:22]}
{[%emt 00:00:20]} 25. Re1 {[%clk 00:07:02]} g5 {[%clk 00:10:03]} {[%emt
00:00:25]} 26. Kf1 {[%clk 00:06:35]} Kg7 {[%clk 00:10:00]} {[%emt 00:00:40]} 27.
Re2 {[%clk 00:05:26]} Kg6 {[%clk 00:09:34]} {[%emt 00:01:46]} 28. Ke1 {[%clk
00:04:51]} h5 {[%clk 00:09:38]} {[%emt 00:00:41]} 29. Kd2 {[%clk 00:04:23]} g4
{[%clk 00:09:27]} {[%emt 00:00:48]} 30. hxg4 hxg4 {[%clk 00:09:31]} 31. Ne1
{[%clk 00:04:31]} {[%emt 00:00:01]} Kf5 {[%clk 00:09:13]} {[%emt 00:00:21]} 32.
Kd3 {[%clk 00:04:00]} {[%emt 00:00:35]} Bd8 {[%clk 00:07:31]} {[%emt 00:01:49]}
33. f3 {[%clk 00:02:54]} Bh4 {[%clk 00:06:43]} {[%emt 00:02:02]} 34. fxg4+
{[%clk 00:02:41]} {[%emt 00:00:19]} Kxg4 {[%clk 00:06:46]} {[%emt 00:00:03]} 35.
Nf3 {[%clk 00:02:24]} {[%emt 00:00:21]} Bf6 {[%clk 00:05:51]} {[%emt 00:01:01]}
36. Rxe6 {[%clk 00:02:18]} {[%emt 00:00:11]} fxe6 {[%clk 00:05:53]} {[%emt
00:00:03]} 37. Ke2 {[%clk 00:02:21]} {[%emt 00:00:01]} Kg3 {[%clk 00:05:30]}
{[%emt 00:00:28]} 38. Kf1 {[%clk 00:02:25]} {[%emt 00:00:01]} Kg4 {[%clk
00:03:33]} {[%emt 00:02:03]} 39. Ke2 {[%clk 00:02:17]} {[%emt 00:00:13]} Kf5
{[%clk 00:03:12]} {[%emt 00:00:26]} 40. Kd3 {[%clk 00:02:18]} {[%emt 00:00:03]}
b5 {[%clk 00:03:16]} {[%emt 00:00:01]} 41. a3 {[%clk 00:02:21]} a5 {[%clk
00:02:43]} {[%emt 00:00:41]} 42. Ne1 {[%clk 00:02:18]} e5 {[%clk 00:02:12]}
{[%emt 00:00:44]} 43. dxe5 {[%clk 00:02:21]} Bxe5 {[%clk 00:02:16]} {[%emt
00:00:03]} 44. Nf3 {[%clk 00:02:25]} c5 {[%clk 00:01:43]} {[%emt 00:00:39]} 45.
Nxe5 {[%clk 00:01:27]} Kxe5 {[%clk 00:01:46]} {[%emt 00:01:03]} 46. b4 {[%clk
00:01:30]} cxb4 {[%clk 00:01:31]} {[%emt 00:00:23]} 47. cxb4 {[%clk 00:01:30]}
axb4 {[%clk 00:01:08]} {[%emt 00:00:34]} 48. axb4 {[%clk 00:01:33]} {[%emt
00:00:01]} Kd5 {[%clk 00:01:12]} {[%emt 00:00:01]} 49. Kc3 {[%clk 00:01:24]}
{[%emt 00:00:15]} Ke4 {[%clk 00:01:14]} {[%emt 00:00:03]} 50. Kd2 {[%clk
00:01:27]} Kd4 {[%clk 00:01:15]} {[%emt 00:00:04]} 51. Ke2 {[%clk 00:01:31]}
{[%emt 00:00:01]} Kc4 {[%clk 00:01:12]} {[%emt 00:00:08]} 52. Kf3 {[%clk
00:01:35]} {[%emt 00:00:02]} Kxb4 53. Kxf4 {[%clk 00:01:39]} Kc5 {[%clk
00:00:36]} {[%emt 00:00:44]} 54. g4 {[%clk 00:01:42]} {[%emt 00:00:01]} b4
{[%clk 00:00:35]} {[%emt 00:00:07]} 55. g5 {[%clk 00:01:44]} {[%emt 00:00:02]}
b3 {[%clk 00:00:15]} {[%emt 00:00:26]} 56. g6 {[%clk 00:01:41]} {[%emt
00:00:07]} b2 {[%clk 00:00:18]} 57. g7 {[%clk 00:01:45]} {[%emt 00:00:02]} b1=Q
{[%clk 00:00:22]} {[%emt 00:00:01]} 58. g8=Q {[%clk 00:01:47]} {[%emt
00:00:02]} Qf1+ {[%clk 00:00:23]} {[%emt 00:00:04]} 59. Ke5 {[%clk 00:01:28]}
{[%emt 00:00:03]} Qe2 {[%clk 00:00:25]} {[%emt 00:00:23]} 60. Kf6 {[%clk
00:01:30]} {[%emt 00:00:04]} Qf3+ {[%clk 00:00:18]} {[%emt 00:00:13]} 61. Kg7
{[%clk 00:01:28]} {[%emt 00:00:06]} 1/2-1/2

[Event "The Kvibergspelen 2024"]
[Site "Kviberg Park Hotel & Conference, Krutvagen 2, Gothenburg, Sweden"]
[Date "2024.09.06"]
[Round "2.18"]
[White "Schriever-Abeln, Marius"]
[Black "Johansson, William"]
[Result "1/2-1/2"]
[TimeControl "15 minutes + 5 seconds per move from move one (Round 1 - 4) / 90 minutes + 30 seconds per move from move one (Round 5 - 8)"]
[WhiteFideId "1752650"]
[BlackFideId "1744070"]
[WhiteElo "2069"]
[BlackElo "1899"]

1. d4 {[%clk 00:15:08]} {[%emt 00:00:02]} Nf6 {[%clk 00:12:43]} {[%emt
00:02:27]} 2. c4 {[%clk 00:15:02]} {[%emt 00:00:11]} e6 {[%clk 00:12:45]}
{[%emt 00:00:03]} 3. Nf3 {[%clk 00:14:37]} {[%emt 00:00:30]} b6 {[%clk
00:12:44]} {[%emt 00:00:07]} 4. g3 {[%clk 00:14:05]} {[%emt 00:00:37]} Bb7
{[%clk 00:12:47]} {[%emt 00:00:01]} 5. Bg2 {[%clk 00:14:06]} {[%emt 00:00:04]}
Bb4+ {[%clk 00:12:51]} {[%emt 00:00:02]} 6. Bd2 {[%clk 00:14:00]} {[%emt
00:00:10]} Qe7 {[%clk 00:12:42]} {[%emt 00:00:13]} 7. a3 {[%clk 00:13:12]}
{[%emt 00:00:53]} Bxd2+ {[%clk 00:12:46]} {[%emt 00:00:02]} 8. Qxd2 {[%clk
00:13:15]} {[%emt 00:00:02]} c5 {[%clk 00:12:30]} {[%emt 00:00:21]} 9. O-O
{[%clk 00:12:51]} {[%emt 00:00:28]} cxd4 {[%clk 00:12:13]} {[%emt 00:00:23]} 10.
Nxd4 {[%clk 00:12:45]} {[%emt 00:00:10]} Bxg2 11. Kxg2 {[%clk 00:12:49]} O-O
{[%clk 00:11:49]} {[%emt 00:00:32]} 12. Nc3 {[%clk 00:12:42]} {[%emt 00:00:12]}
Rc8 {[%clk 00:10:48]} {[%emt 00:01:05]} 13. Qd3 {[%clk 00:11:52]} {[%emt
00:00:56]} Qc5 {[%clk 00:10:37]} {[%emt 00:00:15]} 14. b3 {[%clk 00:10:45]}
{[%emt 00:01:13]} d5 {[%clk 00:10:33]} {[%emt 00:00:08]} 15. Na4 {[%clk
00:09:37]} {[%emt 00:01:13]} dxc4 {[%clk 00:09:24]} {[%emt 00:01:15]} 16. Nxc5
{[%clk 00:08:40]} {[%emt 00:01:02]} cxd3 {[%clk 00:09:27]} {[%emt 00:00:02]} 17.
Nxd3 {[%clk 00:08:43]} {[%emt 00:00:02]} Nc6 {[%clk 00:09:17]} {[%emt
00:00:15]} 18. Nxc6 {[%clk 00:07:59]} {[%emt 00:00:50]} Rxc6 {[%clk 00:09:20]}
{[%emt 00:00:02]} 19. Rac1 {[%clk 00:07:38]} {[%emt 00:00:26]} Rac8 {[%clk
00:09:22]} {[%emt 00:00:02]} 1/2-1/2

[Event "The Kvibergspelen 2024"]
[Site "Kviberg Park Hotel & Conference, Krutvagen 2, Gothenburg, Sweden"]
[Date "2024.09.06"]
[Round "2.19"]
[White "Frank, Valentin"]
[Black "Wahlstrom, Lennart"]
[Result "0-1"]
[TimeControl "15 minutes + 5 seconds per move from move one (Round 1 - 4) / 90 minutes + 30 seconds per move from move one (Round 5 - 8)"]
[WhiteFideId "1785982"]
[BlackFideId "1706829"]
[WhiteElo "1768"]
[BlackElo "2058"]

1. e4 {[%clk 00:15:07]} {[%emt 00:00:03]} e5 {[%clk 00:15:08]} {[%emt
00:00:02]} 2. Bc4 {[%clk 00:15:06]} {[%emt 00:00:07]} Nf6 {[%clk 00:15:11]}
{[%emt 00:00:02]} 3. Nc3 {[%clk 00:15:09]} {[%emt 00:00:02]} Nxe4 {[%clk
00:15:13]} {[%emt 00:00:03]} 4. Nxe4 {[%clk 00:13:33]} {[%emt 00:01:40]} d5
{[%clk 00:15:16]} {[%emt 00:00:02]} 5. Bxd5 {[%clk 00:13:03]} {[%emt 00:00:36]}
Qxd5 {[%clk 00:15:18]} {[%emt 00:00:02]} 6. f3 {[%clk 00:12:43]} {[%emt
00:00:26]} Bc5 {[%clk 00:14:59]} {[%emt 00:00:23]} 7. Nxc5 {[%clk 00:12:12]}
{[%emt 00:00:36]} Qxc5 {[%clk 00:15:03]} {[%emt 00:00:02]} 8. c3 {[%clk
00:10:48]} {[%emt 00:01:29]} Nc6 {[%clk 00:14:56]} {[%emt 00:00:12]} 9. Ne2
{[%clk 00:09:43]} {[%emt 00:01:09]} O-O {[%clk 00:14:50]} {[%emt 00:00:11]} 10.
b4 {[%clk 00:08:16]} {[%emt 00:01:33]} Qb6 {[%clk 00:14:16]} {[%emt 00:00:38]}
11. Ng3 {[%clk 00:07:56]} {[%emt 00:00:25]} a5 {[%clk 00:13:41]} {[%emt
00:00:41]} 12. bxa5 {[%clk 00:07:11]} {[%emt 00:00:49]} Rxa5 {[%clk 00:13:28]}
{[%emt 00:00:18]} 13. Rf1 {[%clk 00:06:15]} {[%emt 00:01:02]} Re8 {[%clk
00:13:00]} {[%emt 00:00:32]} 14. d3 {[%clk 00:05:41]} {[%emt 00:00:39]} Be6
{[%clk 00:12:27]} {[%emt 00:00:38]} 15. Rf2 {[%clk 00:05:22]} {[%emt 00:00:25]}
Rd5 {[%clk 00:11:49]} {[%emt 00:00:42]} 16. Kf1 {[%clk 00:04:50]} {[%emt
00:00:37]} Red8 {[%clk 00:10:49]} {[%emt 00:01:05]} 17. Rd2 {[%clk 00:04:05]}
{[%emt 00:00:50]} Rxd3 {[%clk 00:09:09]} {[%emt 00:01:46]} 18. Rxd3 {[%clk
00:03:38]} {[%emt 00:00:31]} Bc4 {[%clk 00:09:12]} {[%emt 00:00:02]} 19. Ne2
{[%clk 00:02:30]} {[%emt 00:01:13]} Bxd3 {[%clk 00:07:59]} {[%emt 00:01:18]} 20.
Qb3 {[%clk 00:01:52]} {[%emt 00:00:44]} Qa6 {[%clk 00:07:28]} {[%emt 00:00:36]}
21. Qb2 {[%clk 00:01:30]} {[%emt 00:00:27]} Na5 {[%clk 00:05:29]} {[%emt
00:02:04]} 22. Kf2 {[%clk 00:00:53]} {[%emt 00:00:42]} Nc4 {[%clk 00:04:50]}
{[%emt 00:00:43]} 0-1

[Event "The Kvibergspelen 2024"]
[Site "Kviberg Park Hotel & Conference, Krutvagen 2, Gothenburg, Sweden"]
[Date "2024.09.06"]
[Round "2.20"]
[White "Krilovs, Nikolajs"]
[Black "Andren, Patrik"]
[Result "1-0"]
[TimeControl "15 minutes + 5 seconds per move from move one (Round 1 - 4) / 90 minutes + 30 seconds per move from move one (Round 5 - 8)"]
[WhiteFideId "11603100"]
[BlackFideId "1767135"]
[WhiteElo "2054"]
[BlackElo "1895"]

1. c4 {[%clk 00:15:07]} {[%emt 00:00:03]} e5 {[%clk 00:15:08]} {[%emt
00:00:02]} 2. Nc3 {[%clk 00:15:10]} {[%emt 00:00:03]} Nc6 {[%clk 00:15:11]}
{[%emt 00:00:02]} 3. g3 {[%clk 00:15:07]} {[%emt 00:00:07]} f5 {[%clk
00:15:13]} {[%emt 00:00:04]} 4. e4 {[%clk 00:14:22]} {[%emt 00:00:51]} Nf6
{[%clk 00:14:37]} {[%emt 00:00:42]} 5. Bg2 {[%clk 00:14:03]} {[%emt 00:00:22]}
Bc5 {[%clk 00:14:25]} {[%emt 00:00:18]} 6. Nge2 {[%clk 00:14:05]} {[%emt
00:00:02]} d6 {[%clk 00:14:22]} {[%emt 00:00:09]} 7. O-O {[%clk 00:13:49]}
{[%emt 00:00:20]} O-O {[%clk 00:14:01]} {[%emt 00:00:27]} 8. d3 {[%clk
00:13:09]} {[%emt 00:00:44]} Qe8 {[%clk 00:13:15]} {[%emt 00:00:52]} 9. Be3
{[%clk 00:12:50]} {[%emt 00:00:23]} Nd4 {[%clk 00:12:33]} {[%emt 00:00:48]} 10.
Bxd4 {[%clk 00:11:43]} {[%emt 00:01:12]} Bxd4 {[%clk 00:12:32]} {[%emt
00:00:06]} 11. Nxd4 {[%clk 00:11:41]} {[%emt 00:00:06]} exd4 {[%clk 00:12:36]}
{[%emt 00:00:02]} 12. Nb5 {[%clk 00:11:24]} {[%emt 00:00:22]} fxe4 {[%clk
00:11:34]} {[%emt 00:01:07]} 13. Nxc7 {[%clk 00:10:57]} {[%emt 00:00:33]} Qf7
{[%clk 00:10:21]} {[%emt 00:01:16]} 14. Nxa8 {[%clk 00:10:45]} {[%emt
00:00:17]} Bg4 {[%clk 00:10:10]} {[%emt 00:00:16]} 15. f3 {[%clk 00:10:29]}
{[%emt 00:00:22]} exf3 {[%clk 00:09:51]} {[%emt 00:00:24]} 16. Bxf3 {[%clk
00:10:30]} {[%emt 00:00:04]} Bh3 {[%clk 00:08:54]} {[%emt 00:01:02]} 17. Bd5
{[%clk 00:09:46]} {[%emt 00:00:49]} Bxf1 {[%clk 00:08:14]} {[%emt 00:00:46]} 18.
Bxf7+ {[%clk 00:09:46]} {[%emt 00:00:04]} Rxf7 {[%clk 00:08:17]} {[%emt
00:00:02]} 19. Qxf1 {[%clk 00:09:44]} {[%emt 00:00:07]} Ng4 {[%clk 00:08:18]}
{[%emt 00:00:05]} 20. Qh3 {[%clk 00:09:33]} {[%emt 00:00:15]} Ne3 {[%clk
00:08:15]} {[%emt 00:00:08]} 21. Qe6 {[%clk 00:09:13]} {[%emt 00:00:26]} g6
{[%clk 00:08:13]} {[%emt 00:00:06]} 22. Re1 {[%clk 00:09:14]} {[%emt 00:00:04]}
Kg7 {[%clk 00:08:14]} {[%emt 00:00:06]} 23. Rxe3 {[%clk 00:09:15]} {[%emt
00:00:03]} 1-0

[Event "The Kvibergspelen 2024"]
[Site "Kviberg Park Hotel & Conference, Krutvagen 2, Gothenburg, Sweden"]
[Date "2024.09.06"]
[Round "2.21"]
[White "Bergdahl, Martin"]
[Black "Eriksson, Kristian"]
[Result "0-1"]
[TimeControl "15 minutes + 5 seconds per move from move one (Round 1 - 4) / 90 minutes + 30 seconds per move from move one (Round 5 - 8)"]
[WhiteFideId "1782231"]
[BlackFideId "1705172"]
[WhiteElo "1763"]
[BlackElo "2051"]

1. e4 {[%clk 00:15:05]} {[%emt 00:00:04]} e5 {[%clk 00:15:07]} {[%emt
00:00:04]} 2. Nf3 {[%clk 00:15:08]} {[%emt 00:00:01]} Nc6 {[%clk 00:15:10]}
{[%emt 00:00:03]} 3. Bb5 {[%clk 00:15:12]} {[%emt 00:00:01]} a6 {[%clk
00:15:11]} {[%emt 00:00:04]} 4. Ba4 {[%clk 00:15:06]} {[%emt 00:00:11]} d6
{[%clk 00:15:10]} {[%emt 00:00:06]} 5. c3 {[%clk 00:15:09]} {[%emt 00:00:02]}
Bd7 {[%clk 00:15:10]} {[%emt 00:00:04]} 6. O-O {[%clk 00:15:11]} {[%emt
00:00:04]} Nge7 {[%clk 00:15:07]} {[%emt 00:00:07]} 7. d4 {[%clk 00:15:11]}
{[%emt 00:00:06]} Ng6 {[%clk 00:15:09]} {[%emt 00:00:03]} 8. Bb3 {[%clk
00:14:26]} {[%emt 00:00:50]} Be7 {[%clk 00:14:27]} {[%emt 00:00:47]} 9. Be3
{[%clk 00:13:59]} {[%emt 00:00:33]} O-O {[%clk 00:14:23]} {[%emt 00:00:08]} 10.
Nbd2 {[%clk 00:13:55]} {[%emt 00:00:09]} Bf6 {[%clk 00:13:21]} {[%emt
00:01:07]} 11. dxe5 {[%clk 00:13:19]} {[%emt 00:00:42]} Ncxe5 {[%clk 00:13:02]}
{[%emt 00:00:23]} 12. Nxe5 {[%clk 00:13:19]} {[%emt 00:00:05]} Nxe5 {[%clk
00:12:41]} {[%emt 00:00:26]} 13. f4 {[%clk 00:13:10]} {[%emt 00:00:14]} Ng6
{[%clk 00:11:29]} {[%emt 00:01:17]} 14. Nf3 {[%clk 00:12:40]} {[%emt 00:00:35]}
Re8 {[%clk 00:11:02]} {[%emt 00:00:32]} 15. e5 {[%clk 00:12:03]} {[%emt
00:00:42]} Be7 {[%clk 00:10:16]} {[%emt 00:00:51]} 16. f5 {[%clk 00:10:18]}
{[%emt 00:01:51]} Nxe5 {[%clk 00:09:13]} {[%emt 00:01:07]} 17. Nxe5 {[%clk
00:10:03]} {[%emt 00:00:21]} dxe5 {[%clk 00:09:16]} {[%emt 00:00:02]} 18. Qd5
{[%clk 00:10:04]} {[%emt 00:00:05]} Rf8 {[%clk 00:07:56]} {[%emt 00:01:24]} 19.
Qxe5 {[%clk 00:08:53]} {[%emt 00:01:17]} Bf6 {[%clk 00:07:27]} {[%emt
00:00:33]} 20. Qg3 {[%clk 00:08:19]} {[%emt 00:00:37]} Bc6 {[%clk 00:05:09]}
{[%emt 00:02:25]} 21. Rad1 {[%clk 00:08:02]} {[%emt 00:00:22]} Qe7 {[%clk
00:05:00]} {[%emt 00:00:14]} 22. Rfe1 {[%clk 00:07:24]} {[%emt 00:00:44]} Rad8
{[%clk 00:04:15]} {[%emt 00:00:49]} 23. Bg5 {[%clk 00:06:09]} {[%emt 00:01:18]}
Rxd1 24. Bxd1 {[%clk 00:06:13]} Qc5+ {[%clk 00:03:56]} {[%emt 00:00:04]} 25.
Be3 {[%clk 00:06:01]} {[%emt 00:00:16]} Qxf5 {[%clk 00:03:48]} {[%emt
00:00:14]} 26. Rf1 {[%clk 00:05:26]} {[%emt 00:00:40]} Qg6 {[%clk 00:03:41]}
{[%emt 00:00:12]} 27. Qxg6 {[%clk 00:05:01]} {[%emt 00:00:30]} hxg6 {[%clk
00:03:42]} {[%emt 00:00:03]} 28. Bf4 {[%clk 00:04:54]} {[%emt 00:00:13]} Bd5
{[%clk 00:02:48]} {[%emt 00:00:59]} 29. Bxc7 {[%clk 00:04:22]} {[%emt
00:00:38]} Bxa2 {[%clk 00:02:50]} {[%emt 00:00:03]} 30. Bf3 {[%clk 00:04:23]}
{[%emt 00:00:03]} Re8 {[%clk 00:01:39]} {[%emt 00:01:15]} 31. Bxb7 {[%clk
00:03:39]} {[%emt 00:00:50]} Re7 {[%clk 00:01:41]} {[%emt 00:00:03]} 32. Bxa6
{[%clk 00:02:06]} {[%emt 00:01:38]} Rxc7 {[%clk 00:01:44]} {[%emt 00:00:02]} 33.
Bd3 {[%clk 00:02:08]} {[%emt 00:00:03]} Bb3 {[%clk 00:01:40]} {[%emt 00:00:09]}
34. Ra1 {[%clk 00:02:06]} {[%emt 00:00:07]} Rd7 {[%clk 00:01:32]} {[%emt
00:00:12]} 35. Ra3 {[%clk 00:01:34]} {[%emt 00:00:38]} Be6 {[%clk 00:01:15]}
{[%emt 00:00:21]} 36. Bb5 {[%clk 00:01:21]} {[%emt 00:00:19]} Rd1+ {[%clk
00:01:15]} {[%emt 00:00:05]} 37. Bf1 {[%clk 00:01:16]} {[%emt 00:00:06]} Bc4
{[%clk 00:01:17]} {[%emt 00:00:07]} 38. Ra8+ {[%clk 00:01:18]} {[%emt
00:00:02]} Kh7 {[%clk 00:01:21]} {[%emt 00:00:02]} 39. b4 {[%clk 00:01:23]}
{[%emt 00:00:02]} Rxf1# {[%emt 00:00:02]} 0-1

[Event "The Kvibergspelen 2024"]
[Site "Kviberg Park Hotel & Conference, Krutvagen 2, Gothenburg, Sweden"]
[Date "2024.09.06"]
[Round "3.1"]
[White "Nilsson, Patrik"]
[Black "Kucuksari, Kaan"]
[Result "0-1"]
[TimeControl "15 minutes + 5 seconds per move from move one (Round 1 - 4) / 90 minutes + 30 seconds per move from move one (Round 5 - 8)"]
[BlackTitle "IM"]
[WhiteFideId "1708171"]
[BlackFideId "6380166"]
[WhiteElo "2124"]
[BlackElo "2455"]

1. d4 {[%emt 00:00:10]} Nf6 {[%clk 00:14:44]} {[%emt 00:00:20]} 2. Bf4 {[%clk
00:15:09]} {[%emt 00:00:02]} e6 {[%clk 00:14:45]} {[%emt 00:00:05]} 3. e3
{[%clk 00:15:12]} {[%emt 00:00:01]} d5 {[%clk 00:14:44]} {[%emt 00:00:08]} 4.
Nd2 {[%clk 00:15:14]} Bd6 {[%clk 00:14:47]} {[%emt 00:00:02]} 5. Bg3 {[%clk
00:15:15]} {[%emt 00:00:04]} O-O {[%clk 00:14:42]} {[%emt 00:00:11]} 6. Bd3
{[%clk 00:15:11]} {[%emt 00:00:09]} b6 {[%clk 00:14:39]} {[%emt 00:00:07]} 7.
Qe2 {[%clk 00:14:51]} {[%emt 00:00:24]} Bb7 {[%clk 00:14:35]} {[%emt 00:00:09]}
8. e4 {[%clk 00:13:58]} {[%emt 00:00:59]} dxe4 {[%clk 00:14:21]} {[%emt
00:00:19]} 9. Nxe4 {[%clk 00:14:00]} {[%emt 00:00:02]} Nxe4 {[%clk 00:14:23]}
{[%emt 00:00:02]} 10. Bxe4 {[%clk 00:14:04]} {[%emt 00:00:02]} Bxe4 {[%clk
00:14:24]} {[%emt 00:00:05]} 11. Qxe4 {[%clk 00:14:07]} {[%emt 00:00:02]} Nd7
{[%clk 00:14:26]} {[%emt 00:00:02]} 12. Nf3 {[%clk 00:12:23]} {[%emt 00:01:49]}
Nf6 {[%clk 00:14:29]} {[%emt 00:00:02]} 13. Qd3 {[%clk 00:12:12]} {[%emt
00:00:17]} Qd7 {[%clk 00:14:05]} {[%emt 00:00:29]} 14. Bh4 {[%clk 00:11:51]}
{[%emt 00:00:26]} Nd5 {[%clk 00:14:04]} {[%emt 00:00:05]} 15. Ng5 {[%clk
00:10:45]} {[%emt 00:01:12]} f5 {[%clk 00:13:58]} {[%emt 00:00:11]} 16. Bg3
{[%clk 00:10:11]} {[%emt 00:00:38]} h6 {[%clk 00:13:56]} {[%emt 00:00:07]} 17.
Bxd6 {[%clk 00:10:05]} {[%emt 00:00:11]} cxd6 {[%clk 00:13:59]} {[%emt
00:00:02]} 18. Nh3 {[%clk 00:09:41]} {[%emt 00:00:29]} Rac8 {[%clk 00:14:03]}
{[%emt 00:00:02]} 19. c3 {[%clk 00:09:40]} {[%emt 00:00:06]} g5 {[%clk
00:14:05]} {[%emt 00:00:02]} 20. Qd2 {[%clk 00:09:09]} {[%emt 00:00:37]} f4
{[%clk 00:13:49]} {[%emt 00:00:21]} 21. O-O-O {[%clk 00:08:19]} {[%emt
00:00:55]} b5 {[%clk 00:12:30]} {[%emt 00:01:24]} 22. Kb1 {[%clk 00:08:18]}
{[%emt 00:00:06]} b4 {[%clk 00:12:27]} {[%emt 00:00:08]} 23. cxb4 {[%clk
00:06:51]} {[%emt 00:01:32]} Rb8 {[%clk 00:12:30]} {[%emt 00:00:01]} 24. a3
{[%clk 00:06:17]} {[%emt 00:00:40]} a5 {[%clk 00:12:33]} {[%emt 00:00:02]} 25.
bxa5 {[%clk 00:06:10]} {[%emt 00:00:12]} Kg7 {[%clk 00:11:51]} {[%emt
00:00:48]} 26. Ng1 {[%clk 00:03:49]} {[%emt 00:02:25]} Rb3 {[%clk 00:11:48]}
{[%emt 00:00:08]} 27. Ka1 {[%clk 00:02:49]} {[%emt 00:01:05]} Rfb8 {[%clk
00:11:51]} {[%emt 00:00:02]} 28. Rb1 {[%clk 00:02:48]} {[%emt 00:00:06]} Qa4
{[%clk 00:07:54]} {[%emt 00:04:01]} 29. Ne2 {[%clk 00:02:41]} {[%emt 00:00:12]}
R8b5 {[%clk 00:07:55]} {[%emt 00:00:04]} 30. Nc1 {[%clk 00:02:14]} {[%emt
00:00:32]} R3b4 {[%clk 00:07:03]} {[%emt 00:00:57]} 31. Rd1 {[%clk 00:01:52]}
{[%emt 00:00:27]} Rxa5 {[%clk 00:06:46]} {[%emt 00:00:22]} 32. g3 {[%clk
00:01:30]} {[%emt 00:00:28]} Rc4 {[%clk 00:05:35]} {[%emt 00:01:16]} 33. Na2
{[%clk 00:01:15]} {[%emt 00:00:20]} Rc2 {[%clk 00:04:38]} {[%emt 00:01:02]} 34.
Qd3 {[%clk 00:01:18]} {[%emt 00:00:01]} Rxf2 {[%clk 00:04:25]} {[%emt
00:00:18]} 35. Nc3 {[%clk 00:01:17]} {[%emt 00:00:06]} Qxa3+ {[%clk 00:04:17]}
{[%emt 00:00:13]} 0-1